fUST/lending_fUST_20251118
["ID","MTS","AMOUNT","RATE_DAILY","PERIOD"]
[394267295,1763413844468,-508.56824134,0.00035391,5]
[394267296,1763413844476,-3713.7592553,0.00035393,2]
[394267297,1763413844485,-151.0,0.000355,10]
[394267298,1763413844495,-500.0,0.00035552,2]
[394267299,1763413844505,-151.0,0.0003581,31]
[394267300,1763413844515,-151.0,0.0003581,31]
[394267301,1763413844524,-228.837441,0.0003581,31]
[394267302,1763413844533,-151.0,0.0003581,31]
[394267303,1763413844543,-151.0,0.0003581,31]
[394267304,1763413844552,-151.0,0.0003581,31]
[394267305,1763413844562,-151.0,0.0003581,31]
[394267306,1763413844571,-151.0,0.0003581,31]
[394267307,1763413844580,-151.0,0.0003581,31]
[394267308,1763413844590,-151.0,0.0003581,31]
[394267309,1763413844599,-151.0,0.0003581,31]
[394267310,1763413844609,-151.0,0.0003581,31]
[394267311,1763413844618,-507.1083366,0.00035821,5]
[394267312,1763413844627,-151.11681432,0.00035933,120]
[394267313,1763413844636,-871.87267346,0.00035939,5]
[394267314,1763413844645,-167.4071743,0.00036405,2]
[394267315,1763413844654,-151.0,0.000365,11]
[394267316,1763413844663,-157.619091,0.0003655,2]
[394267317,1763413844671,-500.0,0.00036648,2]
[394267318,1763413844681,-309.29,0.00036835,2]
[394267319,1763413844691,-151.0,0.00037,18]
[394267320,1763413844699,-500.0,0.00037299,30]
[394267321,1763413844708,-228.16824617,0.00037757,2]
[394267322,1763413844717,-151.0,0.00037901,31]
[394267323,1763413844726,-151.0,0.00037901,31]
[394267324,1763413844735,-151.0,0.00037901,31]
[394267325,1763413844744,-197.634095,0.00037901,31]
[394267326,1763413844754,-197.634095,0.00037901,31]
[394267327,1763413844763,-151.0,0.00037901,31]
[394267328,1763413844772,-197.634095,0.00037901,31]
[394267329,1763413844781,-197.634095,0.00037901,31]
[394267330,1763413844790,-151.0,0.00037901,31]
[394267331,1763413844799,-167.561636,0.00037901,31]
[394267332,1763413844808,-167.561636,0.00037901,31]
[394267333,1763413844817,-167.561636,0.00037901,31]
[394267334,1763413844826,-167.561636,0.00037901,31]
[394267335,1763413844834,-178.69926738,0.00037901,31]
[394267336,1763413844844,-80000.0,0.00037902,2]
[394267337,1763413844853,-2674.99999984,0.00037921,4]
[394267338,1763413844862,-151.0,0.00038,10]
[394267339,1763413844870,-151.0,0.000385,14]
[394267340,1763413844879,-3713.7592553,0.00038879,2]
[394267341,1763413844889,-1312.08180263,0.00039096,2]
[394267342,1763413844899,-741.43582747,0.00039096,2]
[394267343,1763413844910,-7680.67755398,0.00039271,2]
[394267344,1763413844920,-151.33354372,0.00039302,2]
[394267345,1763413844930,-160.0,0.00039304,2]
[394267346,1763413844939,-151.0,0.000395,11]
[394267347,1763413844949,-1937.12088517,0.00039539,2]
[394267348,1763413844959,-412.38,0.00039669,2]
[394267349,1763413844968,-1937.12088517,0.00039917,2]
[394267350,1763413844978,-189.133564,0.0003999,120]
[394267351,1763413844988,-151.0,0.0003999,2]
[394267352,1763413844998,-151.0,0.0003999,2]
[394267353,1763413845007,-151.0,0.0003999,2]
[394267354,1763413845016,-151.0,0.0003999,2]
[394267355,1763413845025,-152.27062,0.0003999,30]
[394267356,1763413845034,-154.622544,0.0003999,120]
[394267357,1763413845103,-151.0,0.0003999,120]
[394267358,1763413845113,-151.0,0.0003999,120]
[394267359,1763413845122,-159.234346,0.0004,120]
[394267360,1763413845130,-151.0,0.0004,120]
[394267361,1763413845139,-151.0,0.0004,120]
[394267362,1763413845149,-151.0,0.0004,120]
[394267363,1763413845158,-151.0,0.0004,120]
[394267364,1763413845167,-151.0,0.0004,90]
[394267365,1763413845176,-151.0,0.0004,120]
[394267366,1763413845185,-169.485445,0.0004,120]
[394267367,1763413845195,-169.485445,0.0004,120]
[394267368,1763413845204,-169.485445,0.0004,120]
[394267369,1763413845212,-169.485445,0.0004,120]
[394267370,1763413845222,-151.0,0.0004,120]
[394267371,1763413845230,-151.0,0.0004,120]
[394267372,1763413845239,-1937.12088517,0.00040113,2]
[394267373,1763413845249,-157.0,0.000402,120]
[394267374,1763413845258,-215.49801305,0.00040218,2]
[394267375,1763413845267,-71502.9032422,0.00040239,2]
[394267376,1763413845276,-2147.5978564,0.00040239,2]
[394267377,1763413845285,-2147.5978564,0.00040239,2]
[394267378,1763413845294,-151.0,0.00040239,120]
[394267379,1763413845303,-151.0,0.00040239,120]
[394267380,1763413845313,-151.0,0.00040239,120]
[394267381,1763413845323,-151.0,0.00040239,120]
[394267382,1763413845332,-151.164211,0.00040239,15]
[394267383,1763413845341,-151.164211,0.00040239,15]
[394267384,1763413845350,-151.164211,0.00040239,15]
[394267385,1763413845359,-151.164211,0.00040239,15]
[394267386,1763413845368,-151.0,0.00040239,120]
[394267387,1763413845376,-151.0,0.00040239,120]
[394267388,1763413845385,-151.0,0.00040239,60]
[394267389,1763413845394,-152.895824,0.00040239,120]
[394267390,1763413845403,-151.0,0.00040239,120]
[394267391,1763413845411,-151.0,0.00040239,120]
[394267392,1763413845421,-151.0,0.00040239,120]
[394267393,1763413845430,-151.0,0.00040239,120]
[394267394,1763413845438,-151.0,0.00040239,120]
[394267395,1763413845447,-151.0,0.00040239,120]
[394267396,1763413845456,-151.0,0.00040239,120]
[394267397,1763413845465,-151.0,0.00040239,120]
[394267398,1763413845474,-151.0,0.00040239,120]
[394267399,1763413845483,-151.0,0.00040239,120]
[394267400,1763413845493,-151.0,0.00040239,120]
[394267401,1763413845502,-252.975249,0.00040239,7]
[394267402,1763413845511,-151.0,0.00040239,120]
[394267403,1763413845520,-151.0,0.00040239,120]
[394267404,1763413845529,-151.0,0.00040239,120]
[394267405,1763413845539,-151.0,0.00040239,120]
[394267406,1763413845548,-151.0,0.00040239,120]
[394267407,1763413845557,-151.0,0.00040239,120]
[394267408,1763413845566,-151.0,0.00040239,120]
[394267409,1763413845575,-151.0,0.00040239,120]
[394267410,1763413845584,-176.878667,0.00040239,120]
[394267411,1763413845593,-151.0,0.00040239,120]
[394267412,1763413845602,-151.0,0.00040239,120]
[394267413,1763413845611,-151.0,0.00040239,120]
[394267414,1763413845620,-151.0,0.00040239,120]
[394267415,1763413845629,-217.279839,0.00040239,120]
[394267416,1763413845644,-151.0,0.00040239,120]
[394267417,1763413845660,-151.0,0.00040239,120]
[394267418,1763413845673,-151.0,0.00040239,120]
[394267420,1763413845688,-151.0,0.00040239,120]
[394267421,1763413845703,-725.262065,0.00040239,120]
[394267422,1763413845718,-725.262065,0.00040239,120]
[394267423,1763413845734,-725.262065,0.00040239,120]
[394267424,1763413845749,-244.98543025,0.00040278,5]
[394267425,1763413845763,-1937.12088517,0.00040396,2]
[394267426,1763413845776,-715.43,0.000406,30]
[394267427,1763413845792,-2864.15,0.000406,14]
[394267429,1763413845806,-1937.12088521,0.00040632,2]
[394267430,1763413845818,-180.95200386,0.00040872,10]
[394267431,1763413845831,-2101.09,0.0004097,120]
[394267432,1763413845845,-150.0,0.00040971,7]
[394267433,1763413845860,-151.0,0.00040972,120]
[394267434,1763413845875,-500.0,0.00040972,30]
[394267435,1763413845891,-500.0,0.00040972,30]
[394267436,1763413845903,-500.0,0.00040972,30]
[394267437,1763413845916,-500.0,0.00040972,30]
[394267438,1763413845931,-500.0,0.00040972,30]
[394267439,1763413845947,-500.0,0.00040972,30]
[394267440,1763413845959,-428.90108122,0.00040972,30]
[394267441,1763413845970,-167.268318,0.00040972,120]
[394267442,1763413845983,-151.0,0.00040972,120]
[394267443,1763413845996,-151.0,0.00040972,120]
[394267444,1763413846007,-151.0,0.00040972,120]
[394267445,1763413846020,-151.0,0.00040972,120]
[394267446,1763413846031,-151.0,0.00040972,120]
[394267447,1763413846043,-1662.65,0.00040972,2]
[394267449,1763413846056,-1662.65,0.00040972,2]
[394267451,1763413846068,-1662.65,0.00040972,2]
[394267452,1763413846080,-1662.65,0.00040972,2]
[394267453,1763413846092,-1662.65,0.00040972,2]
[394267455,1763413846105,-1662.65,0.00040972,2]
[394267457,1763413846116,-1662.65,0.00040972,2]
[394267459,1763413846128,-1662.65,0.00040972,2]
[394267462,1763413846140,-1662.65,0.00040972,2]
[394267463,1763413846153,-1662.65,0.00040972,2]
[394267464,1763413846164,-1662.65,0.00040972,2]
[394267465,1763413846176,-1662.65,0.00040972,2]
[394267466,1763413846188,-1662.65,0.00040972,2]
[394267467,1763413846200,-1662.65,0.00040972,2]
[394267468,1763413846211,-1662.65,0.00040972,2]
[394267469,1763413846223,-1662.65,0.00040972,2]
[394267470,1763413846235,-1662.65,0.00040972,2]
[394267471,1763413846247,-151.688688,0.00040972,120]
[394267472,1763413846259,-151.0,0.00040972,120]
[394267473,1763413846271,-151.0,0.00040972,120]
[394267474,1763413846285,-151.0,0.00040972,120]
[394267475,1763413846297,-151.0,0.00040972,120]
[394267476,1763413846309,-151.0,0.00040972,120]
[394267477,1763413846321,-151.0,0.00040972,120]
[394267478,1763413846334,-280.502859,0.00040972,120]
[394267479,1763413846343,-280.502859,0.00040972,120]
[394267480,1763413846352,-151.0,0.00040972,120]
[394267481,1763413846362,-280.502859,0.00040972,120]
[394267482,1763413846372,-151.0,0.00040972,120]
[394267483,1763413846481,-280.502859,0.00040972,120]
[394267484,1763413846497,-252.432808,0.00040972,120]
[394267485,1763413846507,-151.0,0.00040972,120]
[394267486,1763413846517,-151.0,0.00040972,120]
[394267487,1763413846527,-151.0,0.00040972,120]
[394267489,1763413846538,-151.0,0.00040972,2]
[394267491,1763413846547,-151.0,0.00040972,2]
[394267493,1763413846557,-151.0,0.00040972,2]
[394267495,1763413846566,-151.0,0.00040972,120]
[394267496,1763413846576,-151.0,0.00040972,120]
[394267497,1763413846585,-151.0,0.00040972,120]
[394267498,1763413846594,-151.0,0.00040972,120]
[394267499,1763413846603,-151.0,0.00040972,120]
[394267500,1763413846611,-197.634095,0.00040972,120]
[394267501,1763413846620,-197.634095,0.00040972,120]
[394267502,1763413846629,-151.0,0.00040972,120]
[394267503,1763413846638,-197.634095,0.00040972,120]
[394267504,1763413846647,-197.634095,0.00040972,120]
[394267505,1763413846656,-151.0,0.00040972,120]
[394267506,1763413846664,-167.561636,0.00040972,120]
[394267507,1763413846674,-167.561636,0.00040972,120]
[394267508,1763413846683,-167.561636,0.00040972,120]
[394267509,1763413846691,-167.561636,0.00040972,120]
[394267510,1763413846700,-150.0,0.00040972,2]
[394267511,1763413846709,-150.0,0.00040972,5]
[394267512,1763413846718,-151.0,0.00040973,14]
[394267513,1763413846727,-332.0,0.00040973,14]
[394267514,1763413846736,-2618.00490482,0.00040995,2]
[394267515,1763413846745,-151.0,0.00040999,120]
[394267516,1763413846754,-1662.65,0.00040999,2]
[394267517,1763413846764,-168.43073726,0.00041,120]
[394267518,1763413846773,-189.93964682,0.00041,120]
[394267519,1763413846782,-215.3498395,0.00041,120]
[394267520,1763413846791,-2979.0,0.00041,2]
[394267521,1763413846800,-151.0,0.00041083,120]
[394267522,1763413846810,-1662.65,0.00041083,2]
[394267523,1763413846820,-1662.65,0.00041083,2]
[394267524,1763413846828,-1662.65,0.00041083,2]
[394267525,1763413846837,-1662.65,0.00041083,2]
[394267526,1763413846846,-1662.65,0.00041083,2]
[394267527,1763413846855,-1662.7591235,0.00041083,2]
[394267528,1763413846864,-151.0,0.00041083,120]
[394267529,1763413846872,-151.0,0.00041083,120]
[394267530,1763413846881,-151.0,0.00041083,120]
[394267531,1763413846891,-151.0,0.00041083,90]
[394267532,1763413846901,-169.485445,0.00041083,120]
[394267533,1763413846912,-169.485445,0.00041083,120]
[394267534,1763413846922,-169.485445,0.00041083,120]
[394267535,1763413846930,-169.485445,0.00041083,120]
[394267536,1763413846939,-151.0,0.00041083,120]
[394267537,1763413846949,-151.0,0.00041083,120]
[394267538,1763413846959,-268.410031,0.00041085,120]
[394267539,1763413846968,-151.0,0.00041094,120]
[394267540,1763413846977,-209.823232,0.00041094,120]
[394267541,1763413846986,-151.0,0.00041094,120]
[394267542,1763413846995,-151.0,0.00041094,120]
[394267543,1763413847004,-151.164211,0.00041094,15]
[394267544,1763413847013,-151.164211,0.00041094,15]
[394267545,1763413847022,-151.164211,0.00041094,15]
[394267546,1763413847031,-151.164211,0.00041094,15]
[394267547,1763413847040,-151.0,0.00041094,120]
[394267548,1763413847049,-151.0,0.00041094,120]
[394267549,1763413847058,-151.0,0.00041094,60]
[394267550,1763413847067,-151.0,0.00041094,120]
[394267551,1763413847076,-151.0,0.00041094,120]
[394267552,1763413847085,-160.0,0.00041095,120]
[394267553,1763413847094,-388.13110247,0.00041095,120]
[394267554,1763413847103,-506.24992773,0.00041095,120]
[394267555,1763413847112,-461.4340379,0.00041095,120]
[394267556,1763413847121,-177.80188346,0.00041095,120]
[394267557,1763413847130,-232.21878074,0.00041095,120]
[394267558,1763413847139,-523.27701308,0.00041095,120]
[394267559,1763413847148,-535.71037052,0.00041095,120]
[394267560,1763413847158,-180.05062259,0.00041095,120]
[394267561,1763413847167,-347.92116371,0.00041095,120]
[394267562,1763413847176,-504.64777708,0.00041095,120]
[394267563,1763413847186,-514.33266646,0.00041095,120]
[394267564,1763413847195,-500.0,0.00041095,7]
[394267565,1763413847204,-629.5467051,0.00041095,120]
[394267566,1763413847212,-500.0,0.00041095,120]
[394267567,1763413847221,-527.80092573,0.00041095,120]
[394267568,1763413847231,-240.33637467,0.00041095,120]
[394267569,1763413847239,-810.65,0.00041095,2]
[394267570,1763413847249,-500.0,0.00041095,120]
[394267571,1763413847258,-505.58055667,0.00041095,14]
[394267572,1763413847268,-505.0183848,0.00041095,120]
[394267573,1763413847278,-600.24555535,0.00041095,120]
[394267574,1763413847288,-511.4182013,0.00041095,120]
[394267575,1763413847297,-241.88475178,0.00041095,120]
[394267576,1763413847307,-420.88084429,0.00041095,120]
[394267577,1763413847318,-500.0,0.00041095,120]
[394267578,1763413847328,-316.42916197,0.00041095,120]
[394267579,1763413847337,-500.0,0.00041095,120]
[394267580,1763413847346,-486.28825211,0.00041095,120]
[394267581,1763413847355,-515.36432528,0.00041095,120]
[394267582,1763413847365,-500.0,0.00041095,120]
[394267583,1763413847374,-425.57184267,0.00041095,120]
[394267584,1763413847383,-514.11274326,0.00041095,120]
[394267585,1763413847393,-530.95442388,0.00041095,120]
[394267586,1763413847402,-505.07583744,0.00041095,120]
[394267587,1763413847411,-219.73520774,0.00041095,120]
[394267588,1763413847420,-332.98537721,0.00041095,120]
[394267589,1763413847429,-211.15960463,0.00041095,120]
[394267590,1763413847439,-341.58216833,0.00041095,120]
[394267591,1763413847448,-512.47181105,0.00041095,120]
[394267592,1763413847457,-513.47148563,0.00041095,120]
[394267593,1763413847466,-520.49168731,0.00041095,120]
[394267594,1763413847475,-389.4125067,0.00041095,120]
[394267595,1763413847484,-227.81685782,0.00041095,120]
[394267596,1763413847493,-282.37039981,0.00041095,120]
[394267597,1763413847502,-500.0,0.00041095,120]
[394267598,1763413847511,-510.08646755,0.00041095,120]
[394267599,1763413847520,-508.42545487,0.00041095,120]
[394267600,1763413847529,-500.0,0.00041095,120]
[394267601,1763413847538,-174.344065,0.00041095,120]
[394267602,1763413847547,-513.54370094,0.00041095,120]
[394267603,1763413847556,-508.44576951,0.00041095,120]
[394267604,1763413847566,-513.90656793,0.00041095,120]
[394267605,1763413847575,-530.3377594,0.00041095,120]
[394267606,1763413847584,-514.20080873,0.00041095,120]
[394267607,1763413847593,-151.0,0.00041095,120]
[394267608,1763413847602,-500.0,0.00041095,120]
[394267609,1763413847611,-312.26811853,0.00041095,120]
[394267610,1763413847620,-151.0,0.00041095,120]
[394267611,1763413847629,-151.0,0.00041095,120]
[394267612,1763413847639,-151.0,0.00041095,120]
[394267613,1763413847648,-519.79238924,0.00041095,120]
[394267614,1763413847657,-151.0,0.00041095,120]
[394267615,1763413847668,-500.0,0.00041095,120]
[394267616,1763413847678,-512.56003422,0.00041095,120]
[394267617,1763413847688,-1450.45,0.00041095,120]
[394267618,1763413847697,-507.60290117,0.00041095,120]
[394267619,1763413847707,-519.9900526,0.00041095,120]
[394267620,1763413847716,-532.0002008,0.00041095,120]
[394267621,1763413847725,-500.0,0.00041095,120]
[394267622,1763413847735,-395.93567304,0.00041095,120]
[394267623,1763413847744,-151.0,0.00041095,120]
[394267624,1763413847753,-242.75895611,0.00041095,120]
[394267625,1763413847763,-177.346097,0.00041095,120]
[394267626,1763413847772,-151.0,0.00041095,120]
[394267627,1763413847781,-461.11184497,0.00041095,120]
[394267628,1763413847790,-151.0,0.00041095,120]
[394267629,1763413847799,-500.0,0.00041095,120]
[394267630,1763413847808,-151.0,0.00041095,120]
[394267631,1763413847819,-180.90458613,0.00041095,120]
[394267632,1763413847827,-500.0,0.00041095,120]
[394267633,1763413847837,-197.60868509,0.00041095,120]
[394267634,1763413847846,-500.0,0.00041095,60]
[394267635,1763413847855,-510.26060617,0.00041095,120]
[394267636,1763413847864,-519.57683624,0.00041095,120]
[394267637,1763413847876,-500.0,0.00041095,120]
[394267638,1763413847885,-500.0,0.00041095,120]
[394267639,1763413847895,-514.96060954,0.00041095,120]
[394267640,1763413847905,-174.673384,0.00041095,120]
[394267641,1763413847918,-552.62305487,0.00041095,120]
[394267642,1763413847928,-280.502859,0.00041095,120]
[394267643,1763413847937,-280.502859,0.00041095,120]
[394267644,1763413847948,-151.0,0.00041095,120]
[394267645,1763413847957,-280.502859,0.00041095,120]
[394267646,1763413847967,-151.0,0.00041095,120]
[394267647,1763413847977,-520.69948464,0.00041095,120]
[394267648,1763413847988,-514.52246859,0.00041095,120]
[394267649,1763413847998,-280.502859,0.00041095,120]
[394267650,1763413848008,-412.90143982,0.00041095,120]
[394267651,1763413848017,-500.0,0.00041095,120]
[394267652,1763413848027,-540.90798273,0.00041095,120]
[394267653,1763413848036,-507.34636537,0.00041095,120]
[394267654,1763413848045,-151.0,0.00041095,120]
[394267655,1763413848055,-516.06378381,0.00041095,120]
[394267656,1763413848065,-500.0,0.00041095,7]
[394267657,1763413848074,-510.81206703,0.00041095,120]
[394267658,1763413848084,-519.04105282,0.00041095,120]
[394267659,1763413848093,-208.37300088,0.00041095,120]
[394267660,1763413848102,-504.83354633,0.00041095,120]
[394267661,1763413848112,-500.0,0.00041095,120]
[394267662,1763413848121,-151.0,0.00041095,120]
[394267663,1763413848131,-151.0,0.00041095,120]
[394267664,1763413848141,-500.0,0.00041095,120]
[394267665,1763413848151,-333.70806917,0.00041095,120]
[394267666,1763413848160,-505.60852032,0.00041095,120]
[394267667,1763413848170,-500.0,0.00041095,120]
[394267668,1763413848179,-500.0,0.00041095,120]
[394267669,1763413848188,-500.0,0.00041095,120]
[394267670,1763413848198,-514.74914367,0.00041095,120]
[394267671,1763413848279,-500.0,0.00041095,120]
[394267672,1763413848291,-518.42974313,0.00041095,120]
[394267673,1763413848301,-527.66810809,0.00041095,120]
[394267674,1763413848311,-515.51442596,0.00041095,120]
[394267675,1763413848321,-500.0,0.00041095,120]
[394267676,1763413848331,-500.0,0.00041095,120]
[394267677,1763413848341,-444.19493326,0.00041095,120]
[394267678,1763413848351,-500.0,0.00041095,120]
[394267679,1763413848360,-509.97725313,0.00041095,120]
[394267680,1763413848369,-341.62641381,0.00041095,120]
[394267681,1763413848378,-509.74660439,0.00041095,120]
[394267682,1763413848387,-500.0,0.00041095,10]
[394267683,1763413848397,-500.0,0.00041095,120]
[394267684,1763413848406,-544.83457628,0.00041095,120]
[394267685,1763413848415,-799.17,0.00041095,60]
[394267686,1763413848424,-500.0,0.00041095,120]
[394267687,1763413848433,-301.72614058,0.00041095,120]
[394267688,1763413848442,-500.0,0.00041095,30]
[394267689,1763413848451,-500.0,0.00041095,120]
[394267690,1763413848460,-397.97535323,0.00041095,120]
[394267691,1763413848470,-469.29168858,0.00041095,120]
[394267692,1763413848479,-508.66986178,0.00041095,120]
[394267693,1763413848488,-179.2901937,0.00041095,120]
[394267694,1763413848497,-275.27539173,0.00041095,120]
[394267695,1763413848506,-500.0,0.00041095,120]
[394267696,1763413848515,-500.0,0.00041095,120]
[394267697,1763413848524,-506.60045683,0.00041095,14]
[394267698,1763413848533,-522.67702888,0.00041095,120]
[394267699,1763413848543,-511.80258339,0.00041095,120]
[394267700,1763413848552,-355.3291998,0.00041095,120]
[394267701,1763413848561,-500.0,0.00041095,120]
[394267702,1763413848571,-622.55429268,0.00041095,120]
[394267703,1763413848580,-1016.43422949,0.00041095,30]
[394267704,1763413848589,-500.0,0.00041095,120]
[394267705,1763413848598,-500.0,0.00041095,120]
[394267706,1763413848607,-203.44690057,0.00041095,120]
[394267707,1763413848616,-491.71184592,0.00041095,120]
[394267708,1763413848625,-532.43223223,0.00041095,120]
[394267709,1763413848634,-500.0,0.00041095,120]
[394267710,1763413848643,-500.0,0.00041095,120]
[394267711,1763413848652,-183.67978746,0.00041095,120]
[394267712,1763413848660,-523.1256487,0.00041095,120]
[394267713,1763413848669,-515.37618385,0.00041095,120]
[394267714,1763413848678,-521.22977776,0.00041095,120]
[394267715,1763413848687,-538.13014695,0.00041095,120]
[394267716,1763413848696,-513.54763116,0.00041095,120]
[394267717,1763413848705,-500.0,0.00041095,120]
[394267718,1763413848715,-500.0,0.00041095,120]
[394267719,1763413848724,-500.0,0.00041095,120]
[394267720,1763413848733,-330.63729587,0.00041095,120]
[394267721,1763413848742,-507.63262984,0.00041095,120]
[394267722,1763413848751,-503.83800444,0.00041095,30]
[394267723,1763413848760,-511.86036958,0.00041095,120]
[394267724,1763413848769,-389.74669123,0.00041095,120]
[394267725,1763413848778,-514.05566228,0.00041095,120]
[394267726,1763413848787,-336.70251984,0.00041095,120]
[394267727,1763413848796,-557.21526836,0.00041095,120]
[394267728,1763413848805,-500.0,0.00041095,120]
[394267729,1763413848815,-500.0,0.00041095,120]
[394267730,1763413848824,-500.0,0.00041095,7]
[394267731,1763413848833,-500.0,0.00041095,120]
[394267732,1763413848841,-521.74326106,0.00041095,120]
[394267733,1763413848850,-560.16460137,0.00041095,120]
[394267734,1763413848859,-511.74839494,0.00041095,120]
[394267735,1763413848869,-511.98045451,0.00041095,120]
[394267736,1763413848877,-251.61696362,0.00041095,120]
[394267737,1763413848886,-514.92595359,0.00041095,120]
[394267738,1763413848895,-520.39915822,0.00041095,120]
[394267739,1763413848907,-500.0,0.00041095,120]
[394267740,1763413848918,-500.0,0.00041095,120]
[394267741,1763413848927,-522.53794806,0.00041095,120]
[394267742,1763413848936,-542.1142664,0.00041095,120]
[394267743,1763413848945,-500.0,0.00041095,120]
[394267744,1763413848955,-538.91174121,0.00041095,120]
[394267745,1763413848963,-570.68644609,0.00041095,120]
[394267746,1763413848972,-580.2719651,0.00041095,120]
[394267747,1763413848982,-506.00551616,0.00041095,120]
[394267748,1763413848991,-503.06230499,0.00041095,120]
[394267749,1763413849001,-258.19684511,0.00041095,120]
[394267750,1763413849010,-514.16041207,0.00041095,120]
[394267751,1763413849019,-417.069413,0.00041095,120]
[394267752,1763413849028,-507.34931317,0.00041095,120]
[394267753,1763413849037,-562.18050736,0.00041095,120]
[394267754,1763413849046,-495.51355058,0.00041095,120]
[394267755,1763413849055,-151.0,0.00041095,2]
[394267756,1763413849066,-151.0,0.00041095,2]
[394267757,1763413849075,-500.0,0.00041095,2]
[394267758,1763413849084,-151.0,0.00041095,2]
[394267759,1763413849092,-510.5225932,0.00041095,120]
[394267760,1763413849102,-523.27325458,0.00041095,120]
[394267761,1763413849111,-244.18617997,0.00041095,120]
[394267762,1763413849120,-517.48085761,0.00041095,120]
[394267763,1763413849129,-500.0,0.00041095,120]
[394267764,1763413849138,-513.4505373,0.00041095,120]
[394267765,1763413849147,-337.36692181,0.00041095,120]
[394267766,1763413849156,-259.78411006,0.00041095,120]
[394267767,1763413849165,-559.42175432,0.00041095,120]
[394267768,1763413849175,-273.78233849,0.00041095,120]
[394267769,1763413849184,-414.11314699,0.00041095,120]
[394267770,1763413849193,-537.9620233,0.00041095,120]
[394267771,1763413849202,-605.45091288,0.00041095,120]
[394267772,1763413849211,-500.0,0.00041095,120]
[394267773,1763413849221,-504.54459856,0.00041095,120]
[394267774,1763413849230,-383.69,0.00041095,120]
[394267775,1763413849240,-506.20577231,0.00041095,120]
[394267776,1763413849249,-507.78101895,0.00041095,120]
[394267777,1763413849259,-506.50053267,0.00041095,120]
[394267778,1763413849269,-151.0,0.00041095,120]
[394267779,1763413849279,-511.98948192,0.00041095,120]
[394267780,1763413849289,-500.0,0.00041095,120]
[394267781,1763413849298,-234.232673,0.00041095,120]
[394267782,1763413849308,-487.33543123,0.00041095,120]
[394267783,1763413849318,-500.0,0.00041095,120]
[394267784,1763413849327,-500.0,0.00041095,120]
[394267785,1763413849337,-416.79455261,0.00041095,120]
[394267786,1763413849346,-500.0,0.00041095,120]
[394267787,1763413849355,-542.85825564,0.00041095,120]
[394267788,1763413849365,-151.0,0.00041095,120]
[394267789,1763413849374,-189.559359,0.00041095,120]
[394267790,1763413849384,-158.66950669,0.00041095,120]
[394267791,1763413849393,-151.0,0.00041095,120]
[394267792,1763413849405,-240.23453692,0.00041095,120]
[394267793,1763413849415,-197.634095,0.00041095,120]
[394267794,1763413849424,-1000.0,0.00041095,2]
[394267795,1763413849437,-197.634095,0.00041095,120]
[394267796,1763413849446,-151.0,0.00041095,120]
[394267797,1763413849456,-500.0,0.00041095,2]
[394267798,1763413849466,-197.634095,0.00041095,120]
[394267799,1763413849476,-477.69205703,0.00041095,120]
[394267800,1763413849486,-510.86211396,0.00041095,120]
[394267801,1763413849495,-197.634095,0.00041095,120]
[394267802,1763413849506,-151.0,0.00041095,120]
[394267803,1763413849516,-523.03,0.00041095,7]
[394267804,1763413849525,-376.63335039,0.00041095,120]
[394267805,1763413849534,-537.70336599,0.00041095,120]
[394267806,1763413849543,-500.0,0.00041095,120]
[394267807,1763413849552,-500.0,0.00041095,30]